[Event "Late-Titled-Tuesday-Blitz-March-05-2024"]
[Site "Chess.com"]
[Date "2024.03.05"]
[Round "1"]
[White "SpeedofLight0"]
[Black "BigAl"]
[Result "1-0"]
[WhiteElo "3091"]
[BlackElo "2525"]
[TimeControl "180+1"]
[EndTime "14:06:49 PST"]
[Termination "SpeedofLight0 won by resignation"]

1. d4 {[%clk 0:03:00.9]} 1... Nf6 {[%clk 0:02:59.2]} 2. Nc3 {[%clk 0:02:59.7]}
2... d6 {[%clk 0:02:55.5]} 3. e4 {[%clk 0:02:57.8]} 3... g6 {[%clk 0:02:54.3]}
4. Be3 {[%clk 0:02:56.7]} 4... Nc6 {[%clk 0:02:54.3]} 5. h3 {[%clk 0:02:55.8]}
5... a6 {[%clk 0:02:53.1]} 6. Nf3 {[%clk 0:02:55.3]} 6... Bg7 {[%clk 0:02:52.4]}
7. Qd2 {[%clk 0:02:54.6]} 7... O-O {[%clk 0:02:45.2]} 8. O-O-O {[%clk
0:02:50.9]} 8... b5 {[%clk 0:02:42.1]} 9. Bd3 {[%clk 0:02:43.5]} 9... e5 {[%clk
0:02:31]} 10. Kb1 {[%clk 0:02:32.2]} 10... exd4 {[%clk 0:02:21]} 11. Nxd4 {[%clk
0:02:33.1]} 11... Nxd4 {[%clk 0:02:13]} 12. Bxd4 {[%clk 0:02:34]} 12... c5
{[%clk 0:02:13.5]} 13. Be3 {[%clk 0:02:21.3]} 13... Be6 {[%clk 0:01:45.1]} 14.
Bh6 {[%clk 0:01:58.4]} 14... Bxh6 {[%clk 0:01:33.5]} 15. Qxh6 {[%clk 0:01:59.3]}
15... Qa5 {[%clk 0:01:29.8]} 16. Be2 {[%clk 0:01:39.7]} 16... b4 {[%clk
0:01:22.5]} 17. Nd5 {[%clk 0:01:39.6]} 17... Bxd5 {[%clk 0:01:16.5]} 18. exd5
{[%clk 0:01:40.5]} 18... Rfe8 {[%clk 0:01:14.7]} 19. Bf3 {[%clk 0:01:39.7]}
19... Re5 {[%clk 0:00:55.2]} 20. h4 {[%clk 0:01:38.6]} 20... Rae8 {[%clk
0:00:52.2]} 21. h5 {[%clk 0:01:37]} 21... c4 {[%clk 0:00:47.2]} 22. hxg6 {[%clk
0:01:27.8]} 22... fxg6 {[%clk 0:00:46.6]} 23. Qh4 {[%clk 0:01:24.7]} 23... b3
{[%clk 0:00:37.9]} 24. axb3 {[%clk 0:01:14.7]} 24... cxb3 {[%clk 0:00:38]} 25.
cxb3 {[%clk 0:01:09.6]} 25... Kg7 {[%clk 0:00:27.5]} 26. Rc1 {[%clk 0:01:08.8]}
26... R8e7 {[%clk 0:00:26.4]} 27. Qh6+ {[%clk 0:01:00.5]} 27... Kf7 {[%clk
0:00:26.4]} 28. Qf4 {[%clk 0:01:01.2]} 28... Rf5 {[%clk 0:00:20.3]} 29. Qxd6
{[%clk 0:00:58.6]} 29... Rb7 {[%clk 0:00:13.7]} 30. Rc8 {[%clk 0:00:51.8]} 30...
Re7 {[%clk 0:00:12.7]} 31. Rhc1 {[%clk 0:00:45]} 31... Rfe5 {[%clk 0:00:10.4]}
32. R8c6 {[%clk 0:00:40.8]} 32... Re1 {[%clk 0:00:10.1]} 33. Qxf6+ {[%clk
0:00:40.4]} 33... Kg8 {[%clk 0:00:09.8]} 34. Rc8+ {[%clk 0:00:39.9]} 34... Re8
{[%clk 0:00:09.6]} 35. Rxe8+ {[%clk 0:00:40]} 35... Rxe8 {[%clk 0:00:09.8]} 36.
d6 {[%clk 0:00:39.3]} 1-0

[Event "Late-Titled-Tuesday-Blitz-March-05-2024"]
[Site "Chess.com"]
[Date "2024.03.05"]
[Round "1"]
[White "LikeWater"]
[Black "the_blue_pill"]
[Result "1-0"]
[WhiteElo "2683"]
[BlackElo "2398"]
[TimeControl "180+1"]
[EndTime "14:06:49 PST"]
[Termination "LikeWater won on time"]

1. e4 {[%clk 0:03:00.9]} 1... c5 {[%clk 0:02:59.6]} 2. Nf3 {[%clk 0:02:59.1]}
2... d6 {[%clk 0:03:00.1]} 3. Bc4 {[%clk 0:02:58.3]} 3... Nf6 {[%clk 0:02:56.4]}
4. d3 {[%clk 0:02:56.7]} 4... Nc6 {[%clk 0:02:56.1]} 5. h3 {[%clk 0:02:51.9]}
5... g6 {[%clk 0:02:54.6]} 6. O-O {[%clk 0:02:51.4]} 6... Bg7 {[%clk 0:02:54.2]}
7. a3 {[%clk 0:02:51.6]} 7... O-O {[%clk 0:02:53.6]} 8. Nc3 {[%clk 0:02:51.2]}
8... a6 {[%clk 0:02:51.5]} 9. Re1 {[%clk 0:02:49.4]} 9... h6 {[%clk 0:02:44.8]}
10. Ne2 {[%clk 0:02:42.3]} 10... Kh7 {[%clk 0:02:39.9]} 11. Ng3 {[%clk
0:02:39.6]} 11... e5 {[%clk 0:02:21.8]} 12. c3 {[%clk 0:02:15.1]} 12... Be6
{[%clk 0:02:17.5]} 13. Bxe6 {[%clk 0:02:06.7]} 13... fxe6 {[%clk 0:02:17]} 14.
b4 {[%clk 0:02:07.6]} 14... b6 {[%clk 0:01:59.3]} 15. Rb1 {[%clk 0:02:02]} 15...
Qd7 {[%clk 0:01:49.3]} 16. Be3 {[%clk 0:01:59.9]} 16... Rf7 {[%clk 0:01:44.5]}
17. d4 {[%clk 0:01:58.9]} 17... exd4 {[%clk 0:01:31]} 18. cxd4 {[%clk
0:01:59.8]} 18... cxd4 {[%clk 0:01:21.5]} 19. Nxd4 {[%clk 0:02:00.7]} 19... Ne5
{[%clk 0:01:15.1]} 20. Qb3 {[%clk 0:01:59]} 20... d5 {[%clk 0:01:00.4]} 21. Rbd1
{[%clk 0:01:30.9]} 21... Nc4 {[%clk 0:00:56.4]} 22. Bc1 {[%clk 0:01:08.1]} 22...
b5 {[%clk 0:00:48.2]} 23. exd5 {[%clk 0:01:07.6]} 23... exd5 {[%clk 0:00:44]}
24. Ne6 {[%clk 0:01:07.2]} 24... Re8 {[%clk 0:00:35.2]} 25. Nc5 {[%clk
0:01:02.2]} 25... Rxe1+ {[%clk 0:00:32.2]} 26. Rxe1 {[%clk 0:01:03.1]} 26... Qc8
{[%clk 0:00:28.8]} 27. Qd3 {[%clk 0:00:59.6]} 27... Nd6 {[%clk 0:00:15.6]} 28.
Bb2 {[%clk 0:00:51.2]} 28... Nfe4 {[%clk 0:00:15.5]} 29. Bxg7 {[%clk 0:00:46.8]}
29... Rxg7 {[%clk 0:00:10.8]} 30. Qxd5 {[%clk 0:00:43.9]} 30... Nxg3 {[%clk
0:00:11]} 31. Qxd6 {[%clk 0:00:43.6]} 31... Nf5 {[%clk 0:00:05.9]} 32. Qf6
{[%clk 0:00:42.2]} 32... Qg8 {[%clk 0:00:01.5]} 33. Qxa6 {[%clk 0:00:38.8]} 1-0

[Event "Late-Titled-Tuesday-Blitz-March-05-2024"]
[Site "Chess.com"]
[Date "2024.03.05"]
[Round "1"]
[White "arenal72"]
[Black "Kostukov_Alex"]
[Result "1-0"]
[WhiteElo "2642"]
[BlackElo "2348"]
[TimeControl "180+1"]
[EndTime "14:06:54 PST"]
[Termination "arenal72 won on time"]

1. Nf3 {[%clk 0:02:59.8]} 1... c5 {[%clk 0:02:57.6]} 2. g3 {[%clk 0:02:59.9]}
2... g6 {[%clk 0:02:58.2]} 3. Bg2 {[%clk 0:02:59.8]} 3... Bg7 {[%clk 0:02:58.2]}
4. O-O {[%clk 0:02:59.8]} 4... Nf6 {[%clk 0:02:56]} 5. d3 {[%clk 0:02:59.3]}
5... O-O {[%clk 0:02:56.4]} 6. e4 {[%clk 0:02:59.5]} 6... d5 {[%clk 0:02:57.1]}
7. e5 {[%clk 0:02:49.3]} 7... Ng4 {[%clk 0:02:55.7]} 8. Bf4 {[%clk 0:02:45.2]}
8... Nc6 {[%clk 0:02:53.5]} 9. Qe2 {[%clk 0:02:44.2]} 9... f6 {[%clk 0:02:41.6]}
10. exf6 {[%clk 0:02:35]} 10... exf6 {[%clk 0:02:28.5]} 11. Nc3 {[%clk
0:02:29.6]} 11... Re8 {[%clk 0:02:17.4]} 12. Qd2 {[%clk 0:02:28.7]} 12... g5
{[%clk 0:02:13.2]} 13. Nxg5 {[%clk 0:02:27.6]} 13... fxg5 {[%clk 0:02:07.9]} 14.
Bxg5 {[%clk 0:02:26.3]} 14... Qd6 {[%clk 0:01:49.8]} 15. Nxd5 {[%clk 0:02:18.5]}
15... Be6 {[%clk 0:01:37.8]} 16. Bf4 {[%clk 0:02:06.4]} 16... Be5 {[%clk
0:01:33.9]} 17. Bxe5 {[%clk 0:02:00.5]} 17... Ncxe5 {[%clk 0:01:10.5]} 18. c4
{[%clk 0:01:43.8]} 18... Bxd5 {[%clk 0:01:05]} 19. Qg5+ {[%clk 0:01:22.1]} 19...
Kh8 {[%clk 0:00:51.9]} 20. cxd5 {[%clk 0:01:20.9]} 20... Qh6 {[%clk 0:00:45.4]}
21. Qxh6 {[%clk 0:01:12]} 21... Nxh6 {[%clk 0:00:46.3]} 22. Rfd1 {[%clk
0:01:10.2]} 22... Nf5 {[%clk 0:00:45]} 23. f4 {[%clk 0:00:57.3]} 23... Ng6
{[%clk 0:00:26.8]} 24. Be4 {[%clk 0:00:51.5]} 24... Nd4 {[%clk 0:00:25.3]} 25.
Kg2 {[%clk 0:00:49.3]} 25... Rad8 {[%clk 0:00:21.2]} 26. Rac1 {[%clk 0:00:48.1]}
26... b6 {[%clk 0:00:21.2]} 27. Rc4 {[%clk 0:00:46.2]} 27... Ne7 {[%clk
0:00:19.8]} 28. b4 {[%clk 0:00:43.9]} 28... Nxd5 {[%clk 0:00:17.6]} 29. Bxd5
{[%clk 0:00:43.3]} 29... Rxd5 {[%clk 0:00:17.2]} 30. bxc5 {[%clk 0:00:41.8]}
30... bxc5 {[%clk 0:00:14.5]} 31. Rb1 {[%clk 0:00:39]} 31... Re2+ {[%clk
0:00:12]} 32. Kh3 {[%clk 0:00:39]} 32... Nf3 {[%clk 0:00:05.5]} 33. Re4 {[%clk
0:00:27.8]} 1-0

[Event "Late-Titled-Tuesday-Blitz-March-05-2024"]
[Site "Chess.com"]
[Date "2024.03.05"]
[Round "1"]
[White "C_K_G"]
[Black "Squirlolz"]
[Result "0-1"]
[WhiteElo "2155"]
[BlackElo "2562"]
[TimeControl "180+1"]
[EndTime "14:06:54 PST"]
[Termination "Squirlolz won by resignation"]

1. e4 {[%clk 0:02:53.7]} 1... d6 {[%clk 0:02:52]} 2. Nf3 {[%clk 0:02:53.3]} 2...
Nf6 {[%clk 0:02:51.8]} 3. Nc3 {[%clk 0:02:52.7]} 3... Bg4 {[%clk 0:02:52]} 4. d4
{[%clk 0:02:51.1]} 4... e6 {[%clk 0:02:51.6]} 5. Be2 {[%clk 0:02:50.6]} 5... d5
{[%clk 0:02:50.9]} 6. e5 {[%clk 0:02:49.9]} 6... Nfd7 {[%clk 0:02:50.7]} 7. h3
{[%clk 0:02:46.8]} 7... Bxf3 {[%clk 0:02:49.7]} 8. Bxf3 {[%clk 0:02:46.7]} 8...
c5 {[%clk 0:02:50.4]} 9. O-O {[%clk 0:02:44.3]} 9... cxd4 {[%clk 0:02:49.6]} 10.
Qxd4 {[%clk 0:02:44.1]} 10... Nc6 {[%clk 0:02:49.3]} 11. Qa4 {[%clk 0:02:28.1]}
11... Ndxe5 {[%clk 0:02:47.1]} 12. Be2 {[%clk 0:02:14]} 12... Bd6 {[%clk
0:02:33.6]} 13. f4 {[%clk 0:01:47.9]} 13... Nd7 {[%clk 0:02:24.6]} 14. Bb5
{[%clk 0:01:46.5]} 14... O-O {[%clk 0:02:20.9]} 15. Bxc6 {[%clk 0:01:45.5]}
15... Qb6+ {[%clk 0:02:13.1]} 16. Kh1 {[%clk 0:01:40.5]} 16... Qxc6 {[%clk
0:02:10.5]} 17. Qd4 {[%clk 0:01:28.6]} 17... Bc5 {[%clk 0:02:00.2]} 18. Qd3
{[%clk 0:01:22.2]} 18... f5 {[%clk 0:01:57]} 19. Bd2 {[%clk 0:01:19.1]} 19...
Nf6 {[%clk 0:01:56.4]} 20. Rae1 {[%clk 0:01:10.3]} 20... Ne4 {[%clk 0:01:56]}
21. Nxe4 {[%clk 0:01:09.5]} 21... fxe4 {[%clk 0:01:56.9]} 22. Qb3 {[%clk
0:01:07]} 22... Kh8 {[%clk 0:01:52.9]} 23. a3 {[%clk 0:00:52.7]} 23... Rf7
{[%clk 0:01:52.1]} 24. Bc3 {[%clk 0:00:31.2]} 24... d4 {[%clk 0:01:48.9]} 25.
Bb4 {[%clk 0:00:28.8]} 25... Bxb4 {[%clk 0:01:44.1]} 26. Qxb4 {[%clk 0:00:27.3]}
26... Rd8 {[%clk 0:01:40.2]} 27. Re2 {[%clk 0:00:22.9]} 27... e3 {[%clk
0:01:36.9]} 28. c3 {[%clk 0:00:18.8]} 28... e5 {[%clk 0:01:23.9]} 29. f5 {[%clk
0:00:18.4]} 29... Qe4 {[%clk 0:01:08.8]} 30. Qc4 {[%clk 0:00:16.2]} 30... Rxf5
{[%clk 0:01:04.8]} 31. Rxf5 {[%clk 0:00:15.8]} 31... Qxf5 {[%clk 0:01:05.7]} 32.
cxd4 {[%clk 0:00:15.7]} 32... exd4 {[%clk 0:00:54.2]} 33. Re1 {[%clk 0:00:14.6]}
33... h6 {[%clk 0:00:48.1]} 34. Qc7 {[%clk 0:00:11.8]} 34... Qf6 {[%clk
0:00:44.9]} 35. Qxb7 {[%clk 0:00:11.2]} 35... d3 {[%clk 0:00:44.2]} 36. Qb5
{[%clk 0:00:05.9]} 36... d2 {[%clk 0:00:42.7]} 37. Rg1 {[%clk 0:00:05.3]} 37...
d1=Q {[%clk 0:00:40.4]} 0-1

[Event "Late-Titled-Tuesday-Blitz-March-05-2024"]
[Site "Chess.com"]
[Date "2024.03.05"]
[Round "1"]
[White "anasta10"]
[Black "yosephtaher"]
[Result "0-1"]
[WhiteElo "2510"]
[BlackElo "2931"]
[TimeControl "180+1"]
[EndTime "14:06:58 PST"]
[Termination "yosephtaher won by resignation"]

1. Nf3 {[%clk 0:03:00.9]} 1... c5 {[%clk 0:02:54.7]} 2. g3 {[%clk 0:02:30.9]}
2... g6 {[%clk 0:02:37.9]} 3. Bg2 {[%clk 0:02:30.8]} 3... Bg7 {[%clk 0:02:37.9]}
4. O-O {[%clk 0:02:31.7]} 4... Nc6 {[%clk 0:02:37.5]} 5. c4 {[%clk 0:02:31.6]}
5... Nf6 {[%clk 0:02:34.5]} 6. Nc3 {[%clk 0:02:32.2]} 6... d5 {[%clk 0:02:33.9]}
7. cxd5 {[%clk 0:02:31.8]} 7... Nxd5 {[%clk 0:02:34.8]} 8. Qa4 {[%clk
0:02:25.1]} 8... Nc7 {[%clk 0:02:23.8]} 9. Qh4 {[%clk 0:02:18.8]} 9... h6 {[%clk
0:02:17]} 10. d3 {[%clk 0:02:05.7]} 10... Ne6 {[%clk 0:02:15.8]} 11. Be3 {[%clk
0:02:01.2]} 11... Rb8 {[%clk 0:02:12.5]} 12. Rfc1 {[%clk 0:01:55.9]} 12... b6
{[%clk 0:02:10.4]} 13. Qa4 {[%clk 0:01:48.2]} 13... Bd7 {[%clk 0:02:08.1]} 14.
Qd1 {[%clk 0:01:44]} 14... O-O {[%clk 0:02:06.7]} 15. Qd2 {[%clk 0:01:44.3]}
15... Kh7 {[%clk 0:02:06.2]} 16. Rab1 {[%clk 0:01:41.8]} 16... Bc8 {[%clk
0:02:02.7]} 17. Ng5+ {[%clk 0:01:38.9]} 17... hxg5 {[%clk 0:02:02.7]} 18. Bxc6
{[%clk 0:01:39.7]} 18... g4 {[%clk 0:01:59.9]} 19. Bg2 {[%clk 0:01:29.4]} 19...
a5 {[%clk 0:01:56.2]} 20. Ne4 {[%clk 0:01:18.8]} 20... Nd4 {[%clk 0:01:52.9]}
21. Bxd4 {[%clk 0:01:10.7]} 21... Qxd4 {[%clk 0:01:51]} 22. Qf4 {[%clk
0:01:04.1]} 22... Bf5 {[%clk 0:01:45.1]} 23. Rc4 {[%clk 0:00:48.5]} 23... Qd8
{[%clk 0:01:41.3]} 24. h3 {[%clk 0:00:34.5]} 24... e5 {[%clk 0:01:26.2]} 25. Qg5
{[%clk 0:00:25.1]} 25... f6 {[%clk 0:00:58.1]} 26. Qh4+ {[%clk 0:00:23.6]} 26...
Kg8 {[%clk 0:00:58.8]} 27. hxg4 {[%clk 0:00:23.2]} 27... Be6 {[%clk 0:00:59.5]}
28. Rcc1 {[%clk 0:00:18.4]} 28... Bxa2 {[%clk 0:00:59.1]} 29. Ra1 {[%clk
0:00:18.3]} 29... Be6 {[%clk 0:00:59.8]} 30. Bf3 {[%clk 0:00:16.5]} 30... Qd4
{[%clk 0:00:54.9]} 31. Kg2 {[%clk 0:00:16.2]} 31... Kf7 {[%clk 0:00:50]} 32. e3
{[%clk 0:00:09.8]} 32... Qd7 {[%clk 0:00:47.6]} 33. g5 {[%clk 0:00:03.8]} 33...
Rh8 {[%clk 0:00:47.9]} 34. Nxf6 {[%clk 0:00:04.1]} 34... Bxf6 {[%clk 0:00:48.2]}
35. Qe4 {[%clk 0:00:02.4]} 35... Bg7 {[%clk 0:00:48.4]} 36. d4 {[%clk
0:00:02.5]} 36... exd4 {[%clk 0:00:44.8]} 37. exd4 {[%clk 0:00:02.8]} 37... Bxd4
{[%clk 0:00:45.4]} 38. Rd1 {[%clk 0:00:02.8]} 38... Rbe8 {[%clk 0:00:45.4]} 39.
b4 {[%clk 0:00:02.6]} 39... Bh3+ {[%clk 0:00:45.4]} 0-1

[Event "Late-Titled-Tuesday-Blitz-March-05-2024"]
[Site "Chess.com"]
[Date "2024.03.05"]
[Round "1"]
[White "TimGrutter03"]
[Black "HanSchut"]
[Result "1-0"]
[WhiteElo "2623"]
[BlackElo "2316"]
[TimeControl "180+1"]
[EndTime "14:06:59 PST"]
[Termination "TimGrutter03 won on time"]

1. e4 {[%clk 0:03:00.9]} 1... c5 {[%clk 0:02:59.7]} 2. Nf3 {[%clk 0:03:01]} 2...
d6 {[%clk 0:03:00.2]} 3. c3 {[%clk 0:03:00.7]} 3... Nf6 {[%clk 0:02:57.1]} 4.
Bd3 {[%clk 0:02:51.7]} 4... Nc6 {[%clk 0:02:51.9]} 5. O-O {[%clk 0:02:50.7]}
5... e6 {[%clk 0:02:52.3]} 6. Bc2 {[%clk 0:02:50.1]} 6... Be7 {[%clk 0:02:52.9]}
7. d4 {[%clk 0:02:50.1]} 7... cxd4 {[%clk 0:02:53.4]} 8. cxd4 {[%clk 0:02:50.4]}
8... d5 {[%clk 0:02:54]} 9. e5 {[%clk 0:02:49.7]} 9... Ne4 {[%clk 0:02:54.4]}
10. Nc3 {[%clk 0:02:50.1]} 10... Nxc3 {[%clk 0:02:54.1]} 11. bxc3 {[%clk
0:02:50]} 11... Bd7 {[%clk 0:02:54.5]} 12. a4 {[%clk 0:02:41]} 12... b6 {[%clk
0:02:52]} 13. Ba3 {[%clk 0:02:37.1]} 13... Bxa3 {[%clk 0:02:45]} 14. Rxa3 {[%clk
0:02:38]} 14... Rc8 {[%clk 0:02:44.2]} 15. h4 {[%clk 0:02:26.2]} 15... Qe7
{[%clk 0:02:39.2]} 16. Ra1 {[%clk 0:02:16.5]} 16... Na5 {[%clk 0:02:38.2]} 17.
Qd3 {[%clk 0:02:15.5]} 17... Rc4 {[%clk 0:02:34.8]} 18. g3 {[%clk 0:02:00.4]}
18... h6 {[%clk 0:02:33.3]} 19. Nd2 {[%clk 0:01:59.7]} 19... Rc7 {[%clk
0:02:24.2]} 20. f4 {[%clk 0:01:53]} 20... g6 {[%clk 0:01:55.2]} 21. Qf3 {[%clk
0:01:45.3]} 21... h5 {[%clk 0:01:55]} 22. Rfc1 {[%clk 0:01:33.7]} 22... Qd8
{[%clk 0:01:29.4]} 23. Nb3 {[%clk 0:01:27.4]} 23... Qc8 {[%clk 0:01:19.3]} 24.
Bd1 {[%clk 0:01:23.3]} 24... Nc4 {[%clk 0:00:54.5]} 25. a5 {[%clk 0:01:19.2]}
25... b5 {[%clk 0:00:50]} 26. Be2 {[%clk 0:01:15.8]} 26... a6 {[%clk 0:00:40.1]}
27. Bxc4 {[%clk 0:01:15.6]} 27... Rxc4 {[%clk 0:00:36.2]} 28. Nc5 {[%clk
0:01:16.5]} 28... O-O {[%clk 0:00:32]} 29. g4 {[%clk 0:01:13.4]} 29... hxg4
{[%clk 0:00:31.1]} 30. Qxg4 {[%clk 0:01:14.3]} 30... b4 {[%clk 0:00:20.4]} 31.
cxb4 {[%clk 0:01:09.3]} 31... Rxd4 {[%clk 0:00:20.7]} 32. h5 {[%clk 0:01:02.2]}
32... Kg7 {[%clk 0:00:20.2]} 33. Qg5 {[%clk 0:01:00.8]} 33... Qd8 {[%clk
0:00:19.1]} 34. Nxd7 {[%clk 0:00:48.3]} 34... Qxd7 {[%clk 0:00:19.5]} 35. Qf6+
{[%clk 0:00:47.1]} 35... Kh7 {[%clk 0:00:15.8]} 36. hxg6+ {[%clk 0:00:45.9]}
36... Kg8 {[%clk 0:00:09.3]} 37. g7 {[%clk 0:00:44.1]} 37... Rc8 {[%clk
0:00:06.9]} 38. Qh6 {[%clk 0:00:40.6]} 38... f5 {[%clk 0:00:04]} 39. Rxc8+
{[%clk 0:00:36.7]} 39... Kf7 {[%clk 0:00:01.8]} 40. Rf8+ {[%clk 0:00:35.7]} 1-0

[Event "Late-Titled-Tuesday-Blitz-March-05-2024"]
[Site "Chess.com"]
[Date "2024.03.05"]
[Round "1"]
[White "Adham_Fawzy"]
[Black "Slovineanu"]
[Result "1-0"]
[WhiteElo "2814"]
[BlackElo "2478"]
[TimeControl "180+1"]
[EndTime "14:07:01 PST"]
[Termination "Adham_Fawzy won by resignation"]

1. e4 {[%clk 0:03:00.9]} 1... e6 {[%clk 0:02:52.3]} 2. d4 {[%clk 0:02:59.9]}
2... d5 {[%clk 0:02:48.2]} 3. Nc3 {[%clk 0:02:59.9]} 3... Nf6 {[%clk 0:02:47.2]}
4. Bd3 {[%clk 0:02:56.5]} 4... dxe4 {[%clk 0:02:39]} 5. Nxe4 {[%clk 0:02:56]}
5... Nxe4 {[%clk 0:02:32.2]} 6. Bxe4 {[%clk 0:02:56.9]} 6... Nd7 {[%clk
0:02:30.8]} 7. c3 {[%clk 0:02:57.2]} 7... c5 {[%clk 0:02:24.4]} 8. Nf3 {[%clk
0:02:56.1]} 8... cxd4 {[%clk 0:02:15.8]} 9. Qxd4 {[%clk 0:02:42.1]} 9... Nc5
{[%clk 0:02:06.6]} 10. Qxd8+ {[%clk 0:02:38]} 10... Kxd8 {[%clk 0:02:06.5]} 11.
Bc2 {[%clk 0:02:38.7]} 11... Bd6 {[%clk 0:01:54.3]} 12. Be3 {[%clk 0:02:30.8]}
12... Ke7 {[%clk 0:01:50.1]} 13. O-O-O {[%clk 0:02:30.4]} 13... b6 {[%clk
0:01:09.5]} 14. Rhe1 {[%clk 0:02:09.1]} 14... Bb7 {[%clk 0:00:50.5]} 15. Nd4
{[%clk 0:02:09.4]} 15... Bxh2 {[%clk 0:00:25.2]} 16. g3 {[%clk 0:01:45.3]} 16...
h5 {[%clk 0:00:20.6]} 17. b4 {[%clk 0:01:38.8]} 17... Nd7 {[%clk 0:00:20.2]} 18.
Bg5+ {[%clk 0:01:39.1]} 18... Nf6 {[%clk 0:00:20]} 19. Be4 {[%clk 0:01:03.1]}
19... Bxe4 {[%clk 0:00:18.2]} 20. Rxe4 {[%clk 0:01:04]} 20... Rac8 {[%clk
0:00:17.8]} 21. Kb2 {[%clk 0:01:01.2]} 21... Rhd8 {[%clk 0:00:11.8]} 22. Rh4
{[%clk 0:00:57.2]} 22... e5 {[%clk 0:00:12]} 23. Re1 {[%clk 0:00:57.5]} 23...
Kf8 {[%clk 0:00:11]} 24. Nf3 {[%clk 0:00:29.7]} 24... e4 {[%clk 0:00:08.2]} 25.
Nd4 {[%clk 0:00:29.3]} 25... Ng4 {[%clk 0:00:07.1]} 26. Bxd8 {[%clk 0:00:26.9]}
26... Rxd8 {[%clk 0:00:07.2]} 27. Rxh5 {[%clk 0:00:26.5]} 27... Nxf2 {[%clk
0:00:03]} 28. Re2 {[%clk 0:00:19.2]} 28... Nd3+ {[%clk 0:00:02.6]} 29. Kc2
{[%clk 0:00:19.9]} 29... Bg1 {[%clk 0:00:03]} 30. Rh8+ {[%clk 0:00:19.1]} 30...
Ke7 {[%clk 0:00:02.6]} 31. Nc6+ {[%clk 0:00:19.8]} 1-0

[Event "Late-Titled-Tuesday-Blitz-March-05-2024"]
[Site "Chess.com"]
[Date "2024.03.05"]
[Round "1"]
[White "Oleksandr_Bortnyk"]
[Black "Good_Knight_Kiss"]
[Result "1-0"]
[WhiteElo "3006"]
[BlackElo "2521"]
[TimeControl "180+1"]
[EndTime "14:07:02 PST"]
[Termination "Oleksandr_Bortnyk won on time"]

1. e4 {[%clk 0:03:00.9]} 1... c5 {[%clk 0:02:56.3]} 2. c3 {[%clk 0:03:00.6]}
2... d5 {[%clk 0:02:53.9]} 3. exd5 {[%clk 0:02:57.5]} 3... Qxd5 {[%clk
0:02:53.3]} 4. d4 {[%clk 0:02:57]} 4... Nc6 {[%clk 0:02:52.8]} 5. Be3 {[%clk
0:02:56.9]} 5... cxd4 {[%clk 0:02:36.2]} 6. cxd4 {[%clk 0:02:57.8]} 6... e6
{[%clk 0:02:19.7]} 7. Nc3 {[%clk 0:02:58.7]} 7... Bb4 {[%clk 0:02:15.5]} 8. Nf3
{[%clk 0:02:58.3]} 8... Nf6 {[%clk 0:02:14.6]} 9. Bd3 {[%clk 0:02:56]} 9... O-O
{[%clk 0:02:11.2]} 10. O-O {[%clk 0:02:53.6]} 10... Bxc3 {[%clk 0:02:00.5]} 11.
bxc3 {[%clk 0:02:54.5]} 11... b6 {[%clk 0:01:56.9]} 12. c4 {[%clk 0:02:36.8]}
12... Qh5 {[%clk 0:01:36.8]} 13. h3 {[%clk 0:02:35.3]} 13... Bb7 {[%clk
0:01:34.3]} 14. Rb1 {[%clk 0:02:35.5]} 14... Na5 {[%clk 0:01:21.8]} 15. Be2
{[%clk 0:02:16.7]} 15... Qg6 {[%clk 0:00:54.6]} 16. Rb5 {[%clk 0:02:08.8]} 16...
h6 {[%clk 0:00:46.2]} 17. d5 {[%clk 0:01:34.3]} 17... exd5 {[%clk 0:00:41.9]}
18. Bd3 {[%clk 0:01:32.9]} 18... Ne4 {[%clk 0:00:35.6]} 19. cxd5 {[%clk
0:01:27.8]} 19... f5 {[%clk 0:00:31.9]} 20. Qa1 {[%clk 0:01:00.4]} 20... Rad8
{[%clk 0:00:26.8]} 21. Qd4 {[%clk 0:00:38.7]} 21... Nd6 {[%clk 0:00:18.4]} 22.
Rb4 {[%clk 0:00:34.8]} 22... Qf6 {[%clk 0:00:12.2]} 23. Rd1 {[%clk 0:00:21]}
23... Qxd4 {[%clk 0:00:05.2]} 24. Rxd4 {[%clk 0:00:21.9]} 24... Rfe8 {[%clk
0:00:03.9]} 25. Nh4 {[%clk 0:00:20.8]} 25... Bc8 {[%clk 0:00:01.9]} 26. Bf4
{[%clk 0:00:20.3]} 26... Nab7 {[%clk 0:00:01.8]} 27. Rc1 {[%clk 0:00:17]} 27...
g5 {[%clk 0:00:02.1]} 28. Bxd6 {[%clk 0:00:14]} 28... Nxd6 {[%clk 0:00:03]} 29.
Nf3 {[%clk 0:00:12.8]} 29... Bb7 {[%clk 0:00:02.8]} 30. Rc7 {[%clk 0:00:12.4]}
30... Re1+ {[%clk 0:00:01.1]} 31. Nxe1 {[%clk 0:00:11.9]} 1-0